[Event "African Games-chT 2019"]
[Site "Casablanca"]
[Date "2019.08.24"]
[Round "2.6"]
[White "Boudriga, Mohamed Ali"]
[Black "Tissir, Mohamed"]
[Result "0-1"]
[ECO "B06"]
[WhiteElo "2325"]
[BlackElo "2379"]
[Annotator "ChessBase"]
[PlyCount "86"]
[EventDate "2019.08.24"]
[EventType "team-tourn"]
[EventCountry "MAR"]
[SourceTitle "playchess.com"]
[Source "ChessBase"]
[SourceQuality "1"]
[WhiteTeam "Tunisia"]
[BlackTeam "Morocco"]
[WhiteTeamCountry "TUN"]
[BlackTeamCountry "MAR"]
[TimeControl "900+10"]

1. e4 {[%emt 0:00:08]} d6 {[%emt 0:00:00]} 2. d4 {[%emt 0:00:17]} g6 {[%emt 0:00:00]} 3. Nc3 {[%emt 0:00:09]} Bg7 {[%emt 0:00:00]} 4. Be3 {[%emt 0:00:35]} Nd7 {[%emt 0:00:02]} 5. Nf3 {[%emt 0:00:07]} c6 {[%emt 0:00:08]} 6. Bd3 {[%emt 0:01:08]} e5 {[%emt 0:01:04]} 7. dxe5 {[%emt 0:00:44]} dxe5 {[%emt 0:00:02]} 8. O-O {[%emt 0:01:20]} Ngf6 {[%emt 0:00:02]} 9. h3 {[%emt 0:00:51]} O-O {[%emt 0:00:04]} 10. Qd2 {[%emt 0:00:14]} Qe7 {[%emt 0:00:15]} 11. Ne2 {[%emt 0:00:09]} Nh5 {[%emt 0:00:59]} 12. Rad1 {[%emt 0:01:06]} a5 {[%emt 0:00:17]} 13. Qc3 {[%emt 0:00:44]} h6 {[%emt 0:00:49]} 14. Rfe1 {[%emt 0:00:19]} Re8 {[%emt 0:01:12]} 15. Nh2 {[%emt 0:03:04]} Nf4 {[%emt 0:01:05]} 16. Qd2 {[%emt 0:01:00]} g5 {[%emt 0:02:04]} 17. Ng3 {[%emt 0:00:05]} Nf6 {[%emt 0:00:01]} 18. Qc3 {[%emt 0:02:27]} Bf8 {[%emt 0:03:04]} 19. a3 {[%emt 0:00:27]} h5 {[%emt 0:00:46]} 20. Nf3 {[%emt 0:00:34]} h4 {[%emt 0:00:18]} 21. Bxf4 {[%emt 0:00:14]} gxf4 {[%emt 0:01:22]} 22. Nf5 {[%emt 0:00:24]} Bxf5 {[%emt 0:00:16]} 23. exf5 e4 24. Bc4 {[%emt 0:01:09]} Bg7 {[%emt 0:00:42]} 25. Qd2 {[%emt 0:01:42]} Qc5 {[%emt 0:00:15]} 26. Qd4 {[%emt 0:00:06]} Qxf5 {[%emt 0:00:10]} 27. Nh2 {[%emt 0:00:04]} Nd5 {[%emt 0:00:10]} 28. Qc5 {[%emt 0:00:02]} Bf8 {[%emt 0:00:20]} 29. Rxd5 {[%emt 0:00:04]} cxd5 {[%emt 0:00:11]} 30. Qxd5 {[%emt 0:00:01]} Qxd5 {[%emt 0:01:54]} 31. Bxd5 {[%emt 0:00:01]} e3 {[%emt 0:00:01]} 32. fxe3 {[%emt 0:00:52]} Bc5 {[%emt 0:00:23]} 33. Ng4 {[%emt 0:00:05]} Kg7 {[%emt 0:00:03]} 34. Kf1 {[%emt 0:00:10]} f5 {[%emt 0:00:05]} 35. Nh2 {[%emt 0:00:01]} Rad8 {[%emt 0:00:16]} 36. Bc4 {[%emt 0:00:17]} Rd2 {[%emt 0:00:04]} 37. Bd3 {[%emt 0:00:04]} fxe3 {[%emt 0:00:09]} 38. Nf3 {[%emt 0:00:16]} Rf2+ {[%emt 0:00:33]} 39. Kg1 {[%emt 0:00:02]} Kf6 {[%emt 0:00:04]} 40. Be2 {[%emt 0:00:27]} Re4 {[%emt 0:01:21]} 41. Kh1 {[%emt 0:00:06]} Bd6 {[%emt 0:00:16]} 42. Bd3 {[%emt 0:00:08]} Re8 {[%emt 0:00:14]} 43. Nd4 Ke5 0-1

[Event "African Games-chT 2019"]
[Site "Casablanca"]
[Date "2019.08.24"]
[Round "2.7"]
[White "Mayar ElIdrissi, Firdaous"]
[Black "Marzouk, Amira"]
[Result "0-1"]
[ECO "B20"]
[WhiteElo "1760"]
[BlackElo "1698"]
[Annotator "NA"]
[PlyCount "88"]
[EventDate "2019.08.24"]
[EventType "team-tourn"]
[EventCountry "MAR"]
[SourceTitle "playchess.com"]
[Source "ChessBase"]
[SourceQuality "1"]
[WhiteTeam "Morocco"]
[BlackTeam "Tunisia"]
[WhiteTeamCountry "MAR"]
[BlackTeamCountry "TUN"]
[TimeControl "900+10"]

1. e4 {[%emt 0:00:00]} c5 {[%emt 0:00:00]} 2. d3 {[%emt 0:00:00]} d6 {[%emt 0:00:00]} 3. Nf3 {[%emt 0:00:00]} Nf6 {[%emt 0:00:02]} 4. g3 {[%emt 0:00:00]} g6 {[%emt 0:00:02]} 5. Bg2 {[%emt 0:00:00]} Bg7 {[%emt 0:00:14]} 6. O-O {[%emt 0:00:02]} Nc6 {[%emt 0:00:01]} 7. Be3 {[%emt 0:00:03]} O-O {[%emt 0:00:02]} 8. h3 {[%emt 0:00:20]} b5 {[%emt 0:01:01]} 9. Nbd2 {[%emt 0:00:05]} a5 {[%emt 0:00:09]} 10. c3 {[%emt 0:00:05]} Bd7 {[%emt 0:00:08]} 11. Ne1 {[%emt 0:00:37]} Qc8 {[%emt 0:00:41]} 12. Kh2 {[%emt 0:00:03]} b4 {[%emt 0:00:13]} 13. Rc1 {[%emt 0:00:16]} Qa6 {[%emt 0:00:42]} 14. Qe2 {[%emt 0:00:54]} Be6 {[%emt 0:00:06]} 15. cxb4 {[%emt 0:00:53]} axb4 {[%emt 0:00:11]} 16. e5 {[%emt 0:00:36]} Nxe5 {[%emt 0:01:12]} 17. Bxa8 {[%emt 0:00:18]} Rxa8 {[%emt 0:00:01]} 18. f4 {[%emt 0:00:49]} Ned7 {[%emt 0:00:35]} 19. Nef3 {[%emt 0:01:54]} Nd5 {[%emt 0:00:21]} 20. Bg1 {[%emt 0:00:46]} Bxb2 {[%emt 0:00:10]} 21. Rc2 {[%emt 0:00:40]} Bg7 {[%emt 0:00:07]} 22. Ng5 {[%emt 0:00:19]} Nc3 {[%emt 0:00:09]} 23. Qe1 {[%emt 0:04:10]} Qxd3 {[%emt 0:00:47]} 24. Nxe6 {[%emt 0:01:53]} Qxc2 {[%emt 0:00:17]} 25. Nxg7 {[%emt 0:00:03]} Kxg7 {[%emt 0:00:21]} 26. Rf2 {[%emt 0:00:26]} Nd5 {[%emt 0:04:09]} 27. Ne4 {[%emt 0:00:35]} Qc4 {[%emt 0:00:15]} 28. Qa1+ {[%emt 0:01:48]} Kg8 {[%emt 0:00:25]} 29. Nd2 {[%emt 0:00:02]} Qc3 {[%emt 0:00:22]} 30. Qb1 {[%emt 0:00:42]} N7f6 {[%emt 0:00:35]} 31. f5 {[%emt 0:00:04]} Ra3 {[%emt 0:00:46]} 32. Nb3 {[%emt 0:00:09]} c4 {[%emt 0:00:22]} 33. Rc2 {[%emt 0:00:01]} Qd3 {[%emt 0:00:19]} 34. Bf2 {[%emt 0:01:48]} cxb3 {[%emt 0:00:30]} 35. Rc8+ {[%emt 0:00:04]} Kg7 {[%emt 0:00:01]} 36. Qxd3 {[%emt 0:00:03]} bxa2 {[%emt 0:00:14]} 37. Qxa3 bxa3 {[%emt 0:00:03]} 38. Bd4 {[%emt 0:00:05]} Nb4 {[%emt 0:01:08]} 39. fxg6 {[%emt 0:00:32]} hxg6 {[%emt 0:00:20]} 40. Kg2 {[%emt 0:00:01]} e5 {[%emt 0:00:12]} 41. Ba1 {[%emt 0:00:08]} Ne4 {[%emt 0:00:14]} 42. Rc4 {[%emt 0:00:13]} Nxg3 {[%emt 0:01:20]} 43. Rxb4 {[%emt 0:00:12]} Nf5 {[%emt 0:00:02]} 44. Rb3 {[%emt 0:00:24]} Nh4+ {[%emt 0:02:01] Rxa3} 0-1

[Event "African Games-chT 2019"]
[Site "Casablanca"]
[Date "2019.08.24"]
[Round "2.8"]
[White "Miladi, Amen"]
[Black "Rania, Sbai"]
[Result "0-1"]
[ECO "C54"]
[WhiteElo "1811"]
[BlackElo "1853"]
[Annotator "NA"]
[PlyCount "88"]
[EventDate "2019.08.24"]
[EventType "team-tourn"]
[EventCountry "MAR"]
[SourceTitle "playchess.com"]
[Source "ChessBase"]
[SourceQuality "1"]
[WhiteTeam "Tunisia"]
[BlackTeam "Morocco"]
[WhiteTeamCountry "TUN"]
[BlackTeamCountry "MAR"]
[TimeControl "900+10"]

1. e4 {[%emt 0:00:00]} e5 {[%emt 0:00:00]} 2. Nf3 {[%emt 0:00:00]} Nc6 {[%emt 0:00:00]} 3. Bc4 {[%emt 0:00:00]} Bc5 {[%emt 0:00:00]} 4. c3 {[%emt 0:00:00]} Nf6 {[%emt 0:00:07]} 5. d3 {[%emt 0:00:00]} d6 {[%emt 0:00:33]} 6. Bb3 {[%emt 0:00:00]} h6 {[%emt 0:00:37]} 7. Nbd2 {[%emt 0:00:03]} a6 {[%emt 0:00:23]} 8. Nf1 {[%emt 0:00:07]} O-O {[%emt 0:02:49]} 9. Ng3 {[%emt 0:00:08]} Bg4 {[%emt 0:00:42]} 10. h3 {[%emt 0:00:21]} Be6 {[%emt 0:00:01]} 11. Bc2 {[%emt 0:00:01]} Ne7 {[%emt 0:00:19]} 12. O-O {[%emt 0:00:24]} c6 {[%emt 0:01:04]} 13. d4 {[%emt 0:00:59]} exd4 {[%emt 0:00:16]} 14. cxd4 {[%emt 0:00:01]} Bb6 {[%emt 0:00:51]} 15. Be3 {[%emt 0:01:57]} Ng6 {[%emt 0:02:15]} 16. Nd2 {[%emt 0:02:34]} c5 {[%emt 0:01:54]} 17. dxc5 {[%emt 0:00:32]} Bxc5 {[%emt 0:00:37]} 18. Qe2 {[%emt 0:01:54]} Bxe3 {[%emt 0:00:39]} 19. Qxe3 Rc8 20. Bb3 {[%emt 0:00:47]} Bxb3 {[%emt 0:00:44]} 21. Qxb3 {[%emt 0:00:02]} Rc7 {[%emt 0:00:16]} 22. Rac1 {[%emt 0:00:38]} Re8 {[%emt 0:00:36]} 23. Rfe1 {[%emt 0:01:16]} Qd7 {[%emt 0:01:15]} 24. Rcd1 {[%emt 0:00:29]} Rec8 {[%emt 0:00:47]} 25. Nf3 {[%emt 0:00:58]} Qc6 {[%emt 0:01:01]} 26. Nd4 {[%emt 0:00:27]} Qc4 {[%emt 0:00:13]} 27. Qxc4 {[%emt 0:00:34]} Rxc4 {[%emt 0:00:01]} 28. Ndf5 {[%emt 0:00:01]} Rc2 {[%emt 0:00:35]} 29. Nxd6 {[%emt 0:00:12]} R8c7 {[%emt 0:00:00]} 30. e5 {[%emt 0:01:14]} Nd7 {[%emt 0:00:08]} 31. Rb1 {[%emt 0:00:31]} Ndxe5 {[%emt 0:00:10]} 32. f4 {[%emt 0:01:38]} Nd3 {[%emt 0:00:23]} 33. Re8+ {[%emt 0:00:02]} Kh7 {[%emt 0:00:10]} 34. Re2 {[%emt 0:01:38]} Ngxf4 {[%emt 0:00:25]} 35. Re3 {[%emt 0:00:54]} Rxg2+ {[%emt 0:00:14]} 36. Kf1 {[%emt 0:00:04]} Rf2+ {[%emt 0:00:08]} 37. Kg1 {[%emt 0:00:04]} Nxh3+ {[%emt 0:00:30]} 38. Kh1 {[%emt 0:00:01]} Rfc2 {[%emt 0:00:21]} 39. Rxd3 {[%emt 0:00:34]} Nf2+ {[%emt 0:00:01]} 40. Kg1 Nxd3 {[%emt 0:00:02]} 41. Nge4 {[%emt 0:00:29]} Rc1+ {[%emt 0:00:15]} 42. Rxc1 {[%emt 0:00:01]} Rxc1+ {[%emt 0:00:01]} 43. Kg2 {[%emt 0:00:00]} Rc2+ {[%emt 0:00:04]} 44. Kf3 {[%emt 0:00:02]} Rxb2 {[%emt 0:00:03]} 0-1

[Event "African Games-chT 2019"]
[Site "Casablanca"]
[Date "2019.08.24"]
[Round "2.9"]
[White "Makoto, Rodwell"]
[Black "Bellahcene, Bilel"]
[Result "0-1"]
[ECO "A09"]
[WhiteElo "2373"]
[BlackElo "2550"]
[Annotator "ChessBase"]
[PlyCount "72"]
[EventDate "2019.08.24"]
[EventType "team-tourn"]
[EventCountry "MAR"]
[SourceTitle "playchess.com"]
[Source "ChessBase"]
[SourceQuality "1"]
[WhiteTeam "Zimbabwe"]
[BlackTeam "Algeria"]
[WhiteTeamCountry "ZIM"]
[BlackTeamCountry "ALG"]
[TimeControl "900+10"]

1. Nf3 {[%emt 0:00:00]} d5 {[%emt 0:00:00]} 2. c4 d4 3. b4 {[%emt 0:00:03]} g5 {[%emt 0:00:00]} 4. e3 {[%emt 0:00:12]} e5 {[%emt 0:00:19]} 5. Bb2 {[%emt 0:01:54]} Bg7 {[%emt 0:00:06]} 6. exd4 {[%emt 0:01:11]} exd4 {[%emt 0:00:04]} 7. Bd3 {[%emt 0:00:57]} g4 {[%emt 0:00:15]} 8. Qe2+ {[%emt 0:00:39]} Ne7 {[%emt 0:00:06]} 9. Ne5 {[%emt 0:00:39]} O-O {[%emt 0:00:10]} 10. O-O {[%emt 0:02:23]} Re8 {[%emt 0:00:24]} 11. f4 {[%emt 0:02:22]} Nec6 {[%emt 0:01:06]} 12. b5 {[%emt 0:02:03]} Nxe5 {[%emt 0:01:04]} 13. fxe5 {[%emt 0:00:01]} Nd7 {[%emt 0:00:27]} 14. Qe4 {[%emt 0:01:02]} Qh4 {[%emt 0:00:36]} 15. g3 {[%emt 0:01:32]} Qh6 {[%emt 0:00:15]} 16. Bxd4 {[%emt 0:01:03]} Nxe5 {[%emt 0:00:02]} 17. Bxe5 {[%emt 0:00:14]} Rxe5 {[%emt 0:00:09]} 18. Qf4 {[%emt 0:00:12]} Qxf4 {[%emt 0:01:45]} 19. gxf4 {[%emt 0:00:01]} Re8 {[%emt 0:00:01]} 20. Nc3 {[%emt 0:00:00]} Rd8 {[%emt 0:00:00]} 21. Be4 {[%emt 0:00:26]} Rxd2 22. Rac1 a6 {[%emt 0:00:15]} 23. a4 {[%emt 0:00:30]} axb5 {[%emt 0:00:02]} 24. cxb5 {[%emt 0:00:01]} Bd4+ {[%emt 0:00:19]} 25. Kh1 {[%emt 0:00:01]} Bxc3 {[%emt 0:00:10]} 26. Rxc3 {[%emt 0:00:02]} Rxa4 {[%emt 0:00:01]} 27. Re1 {[%emt 0:00:32]} Bd7 {[%emt 0:00:35]} 28. Rxc7 {[%emt 0:01:00]} Bxb5 {[%emt 0:00:03]} 29. Bxb7 {[%emt 0:00:10]} Rxf4 {[%emt 0:00:14]} 30. Rc5 {[%emt 0:00:14]} Be2 {[%emt 0:00:10]} 31. Kg2 {[%emt 0:00:23]} h6 {[%emt 0:00:21]} 32. Kg3 {[%emt 0:00:08]} Rf6 {[%emt 0:00:01]} 33. Be4 {[%emt 0:00:12]} Kg7 {[%emt 0:00:08]} 34. Rf5 {[%emt 0:00:07]} Re6 {[%emt 0:00:15]} 35. Bd5 {[%emt 0:00:02]} Re3+ {[%emt 0:00:13]} 36. Kf4 {[%emt 0:00:14]} Re7 {[%emt 0:00:02]} 0-1

[Event "African Games-chT 2019"]
[Site "Casablanca"]
[Date "2019.08.24"]
[Round "2.10"]
[White "Arab, Adlane"]
[Black "Mushore, Emarald Takudzwa"]
[Result "1-0"]
[ECO "E06"]
[WhiteElo "2485"]
[BlackElo "2198"]
[Annotator "ChessBase"]
[PlyCount "83"]
[EventDate "2019.08.24"]
[EventType "team-tourn"]
[EventCountry "MAR"]
[SourceTitle "playchess.com"]
[Source "ChessBase"]
[SourceQuality "1"]
[WhiteTeam "Algeria"]
[BlackTeam "Zimbabwe"]
[WhiteTeamCountry "ALG"]
[BlackTeamCountry "ZIM"]
[TimeControl "900+10"]

1. d4 {[%emt 0:00:00]} Nf6 {[%emt 0:00:00]} 2. c4 {[%emt 0:00:00]} e6 {[%emt 0:00:00]} 3. g3 {[%emt 0:00:00]} d5 {[%emt 0:00:00]} 4. Nf3 {[%emt 0:00:00]} Be7 {[%emt 0:00:09]} 5. Bg2 {[%emt 0:00:00]} O-O {[%emt 0:00:03]} 6. O-O {[%emt 0:00:04]} dxc4 {[%emt 0:00:05]} 7. Qc2 {[%emt 0:00:03]} c5 {[%emt 0:01:16]} 8. Qxc4 {[%emt 0:00:15]} Nc6 {[%emt 0:02:30]} 9. dxc5 {[%emt 0:01:09]} Qd5 {[%emt 0:00:08]} 10. Qc2 {[%emt 0:00:31]} Qxc5 {[%emt 0:00:14]} 11. Nc3 {[%emt 0:00:21]} Qh5 {[%emt 0:00:58]} 12. h3 {[%emt 0:01:01]} Bd7 {[%emt 0:02:43]} 13. Rd1 {[%emt 0:00:42]} Rfd8 {[%emt 0:00:04]} 14. Bf4 {[%emt 0:00:08]} Rac8 {[%emt 0:00:05]} 15. a3 {[%emt 0:00:13]} Qc5 {[%emt 0:01:12]} 16. Rac1 {[%emt 0:00:38]} Be8 {[%emt 0:00:21]} 17. b4 {[%emt 0:00:46]} Rxd1+ {[%emt 0:01:57]} 18. Qxd1 {[%emt 0:00:02]} Qb6 {[%emt 0:00:13]} 19. Be3 {[%emt 0:03:07]} Qd8 {[%emt 0:00:18]} 20. Qb3 {[%emt 0:00:21]} a6 {[%emt 0:01:01]} 21. Na4 {[%emt 0:01:16]} Qd5 {[%emt 0:00:37]} 22. Qb2 {[%emt 0:00:31]} Rd8 {[%emt 0:00:30]} 23. Nd4 {[%emt 0:01:01]} Qd6 {[%emt 0:01:12]} 24. Nxc6 {[%emt 0:00:08]} Bxc6 {[%emt 0:00:15]} 25. Bxc6 {[%emt 0:00:04]} bxc6 {[%emt 0:00:02]} 26. Bc5 {[%emt 0:00:14]} Qd7 {[%emt 0:00:12]} 27. Nb6 {[%emt 0:00:15]} Qb7 {[%emt 0:00:07]} 28. Bxe7 {[%emt 0:00:03]} Qxe7 {[%emt 0:00:02]} 29. Rxc6 {[%emt 0:00:03]} h6 {[%emt 0:00:44]} 30. Qc2 {[%emt 0:00:04]} g6 {[%emt 0:00:12]} 31. Qc3 {[%emt 0:00:55]} Qb7 {[%emt 0:01:00]} 32. Qc4 {[%emt 0:01:50]} Rd1+ {[%emt 0:01:01]} 33. Kh2 {[%emt 0:00:01]} Kg7 {[%emt 0:00:26]} 34. a4 {[%emt 0:00:16]} h5 {[%emt 0:00:06]} 35. a5 {[%emt 0:00:08]} h4 {[%emt 0:00:05]} 36. g4 {[%emt 0:00:13]} Nd5 {[%emt 0:00:34]} 37. Nxd5 {[%emt 0:00:11]} exd5 {[%emt 0:00:02]} 38. Qc3+ {[%emt 0:00:27]} d4 {[%emt 0:00:04]} 39. Qf3 {[%emt 0:00:01]} Qb8+ {[%emt 0:00:11]} 40. Kg2 {[%emt 0:00:03]} Qxb4 {[%emt 0:00:02]} 41. Qf6+ {[%emt 0:00:04]} Kh7 {[%emt 0:00:04]} 42. Qxf7+ {[%emt 0:00:02]} 1-0

[Event "African Games-chT 2019"]
[Site "Casablanca"]
[Date "2019.08.24"]
[Round "2.11"]
[White "Shaba, Linda"]
[Black "Nassr, Lina"]
[Result "1/2-1/2"]
[ECO "D02"]
[WhiteElo "1615"]
[BlackElo "1938"]
[Annotator "NA"]
[PlyCount "85"]
[EventDate "2019.08.24"]
[EventType "team-tourn"]
[EventCountry "MAR"]
[SourceTitle "playchess.com"]
[Source "ChessBase"]
[SourceQuality "1"]
[WhiteTeam "Zimbabwe"]
[BlackTeam "Algeria"]
[WhiteTeamCountry "ZIM"]
[BlackTeamCountry "ALG"]
[TimeControl "900+10"]

1. d4 {[%emt 0:00:00]} d5 {[%emt 0:00:00]} 2. Nf3 {[%emt 0:00:00]} Nf6 {[%emt 0:00:00]} 3. g3 {[%emt 0:00:03]} e6 {[%emt 0:00:00]} 4. Bg2 {[%emt 0:00:03]} Be7 {[%emt 0:00:00]} 5. O-O {[%emt 0:00:04]} b6 {[%emt 0:00:00]} 6. c4 {[%emt 0:00:04]} O-O {[%emt 0:00:19]} 7. cxd5 {[%emt 0:00:08]} exd5 {[%emt 0:00:34]} 8. Nc3 {[%emt 0:00:08]} Bb7 {[%emt 0:00:02]} 9. Ne5 {[%emt 0:01:00]} Re8 {[%emt 0:01:43]} 10. Qc2 {[%emt 0:02:18]} Nbd7 {[%emt 0:01:18]} 11. Nxd7 {[%emt 0:01:46]} Qxd7 {[%emt 0:00:07]} 12. Bg5 {[%emt 0:00:36]} h6 {[%emt 0:00:32]} 13. Bxf6 {[%emt 0:00:23]} Bxf6 {[%emt 0:00:03]} 14. e3 {[%emt 0:00:02]} a6 {[%emt 0:02:56]} 15. Rac1 {[%emt 0:01:17]} Rac8 {[%emt 0:00:54]} 16. Qb3 {[%emt 0:02:20]} Red8 {[%emt 0:01:21]} 17. Ne2 {[%emt 0:01:03]} Qd6 {[%emt 0:02:05]} 18. Bh3 {[%emt 0:00:34]} Rb8 {[%emt 0:00:10]} 19. Rc2 {[%emt 0:00:35]} c5 {[%emt 0:01:40]} 20. dxc5 {[%emt 0:02:10]} bxc5 {[%emt 0:00:02]} 21. Qd3 {[%emt 0:00:51]} c4 {[%emt 0:02:25]} 22. Qd2 {[%emt 0:00:44]} d4 {[%emt 0:01:08]} 23. Nxd4 {[%emt 0:00:59]} Qd5 {[%emt 0:00:15]} 24. f3 {[%emt 0:00:15]} Rd6 {[%emt 0:00:38]} 25. Bg2 {[%emt 0:00:25]} Rbd8 {[%emt 0:00:28]} 26. f4 {[%emt 0:00:16]} Qxg2+ {[%emt 0:00:03]} 27. Qxg2 {[%emt 0:00:01]} Bxg2 {[%emt 0:00:01]} 28. Kxg2 {[%emt 0:00:10]} Bxd4 {[%emt 0:00:03]} 29. exd4 {[%emt 0:00:06]} Rxd4 {[%emt 0:00:01]} 30. Rfc1 {[%emt 0:00:11]} Kh7 {[%emt 0:00:15]} 31. Kh3 {[%emt 0:00:08]} Rd2 {[%emt 0:00:14]} 32. Rxd2 {[%emt 0:01:00]} Rxd2 {[%emt 0:00:01]} 33. Rxc4 {[%emt 0:00:01]} Rxb2 {[%emt 0:00:02]} 34. Ra4 {[%emt 0:00:01]} Rb6 {[%emt 0:00:04]} 35. Kg4 {[%emt 0:00:02]} Kg6 {[%emt 0:00:15]} 36. Ra5 {[%emt 0:00:18]} Kf6 {[%emt 0:00:16]} 37. h3 {[%emt 0:00:14]} g6 {[%emt 0:00:19]} 38. Kf3 {[%emt 0:00:25]} Ke6 {[%emt 0:00:24]} 39. Re5+ {[%emt 0:00:03]} Kd6 {[%emt 0:00:12]} 40. Ra5 {[%emt 0:00:12]} Ke6 {[%emt 0:00:26]} 41. Re5+ {[%emt 0:00:05]} Kd6 {[%emt 0:00:00]} 42. Ra5 {[%emt 0:00:01]} Ke6 {[%emt 0:00:02]} 43. Re5+ {[%emt 0:00:02]} 1/2-1/2

[Event "African Games-chT 2019"]
[Site "Casablanca"]
[Date "2019.08.24"]
[Round "2.12"]
[White "Latreche, Sabrina"]
[Black "Wakuruwarewa, Colletta"]
[Result "1-0"]
[ECO "C00"]
[WhiteElo "2064"]
[BlackElo "1587"]
[Annotator "NA"]
[PlyCount "109"]
[EventDate "2019.08.24"]
[EventType "team-tourn"]
[EventCountry "MAR"]
[SourceTitle "playchess.com"]
[Source "ChessBase"]
[SourceQuality "1"]
[WhiteTeam "Algeria"]
[BlackTeam "Zimbabwe"]
[WhiteTeamCountry "ALG"]
[BlackTeamCountry "ZIM"]
[TimeControl "900+10"]

1. e4 {[%emt 0:00:00]} e6 {[%emt 0:00:00]} 2. Qe2 {[%emt 0:00:00]} c5 {[%emt 0:00:01]} 3. g3 {[%emt 0:00:00]} Nc6 {[%emt 0:00:02]} 4. Bg2 {[%emt 0:00:01]} Nd4 {[%emt 0:00:31]} 5. Qd1 {[%emt 0:00:02]} d5 {[%emt 0:00:06]} 6. c3 {[%emt 0:00:46]} Nc6 {[%emt 0:00:03]} 7. exd5 {[%emt 0:00:55]} exd5 {[%emt 0:00:01]} 8. Qe2+ {[%emt 0:00:02]} Be7 {[%emt 0:00:08]} 9. Nf3 {[%emt 0:00:40]} Nf6 {[%emt 0:00:02]} 10. O-O {[%emt 0:00:09]} O-O {[%emt 0:00:02]} 11. d3 {[%emt 0:00:14]} h6 {[%emt 0:00:06]} 12. Bf4 {[%emt 0:00:46]} Bf5 {[%emt 0:00:29]} 13. Na3 {[%emt 0:01:31]} a6 {[%emt 0:00:14]} 14. Rad1 {[%emt 0:00:20]} Re8 {[%emt 0:00:20]} 15. Qd2 {[%emt 0:00:07]} Bd6 {[%emt 0:02:11]} 16. Nc2 {[%emt 0:01:42]} Qc7 {[%emt 0:00:34]} 17. Bxd6 {[%emt 0:00:07]} Qxd6 {[%emt 0:00:02]} 18. Ne3 {[%emt 0:00:11]} Be6 {[%emt 0:02:04]} 19. Rfe1 {[%emt 0:01:58]} d4 {[%emt 0:00:51]} 20. cxd4 {[%emt 0:00:14]} Nxd4 {[%emt 0:00:55]} 21. Nxd4 {[%emt 0:00:22]} Qxd4 {[%emt 0:00:03]} 22. Bxb7 {[%emt 0:00:40]} Rab8 {[%emt 0:00:02]} 23. Bc6 {[%emt 0:00:01]} Rec8 {[%emt 0:00:14]} 24. Nc2 {[%emt 0:01:26]} Qd6 {[%emt 0:01:34]} 25. Bg2 {[%emt 0:00:23]} Rxb2 {[%emt 0:00:13]} 26. a3 {[%emt 0:01:10]} Bb3 {[%emt 0:00:43]} 27. Qc3 {[%emt 0:00:53]} Bxc2 {[%emt 0:00:36]} 28. Qxb2 {[%emt 0:00:02]} Bxd1 {[%emt 0:00:01]} 29. Rxd1 {[%emt 0:00:01]} Rb8 {[%emt 0:00:24]} 30. Qc3 {[%emt 0:00:17]} Qd4 {[%emt 0:01:03]} 31. Rc1 {[%emt 0:00:56]} Rd8 {[%emt 0:01:39]} 32. Bf1 {[%emt 0:00:16]} Rd5 {[%emt 0:01:08]} 33. Qxd4 {[%emt 0:02:01]} cxd4 {[%emt 0:00:04]} 34. Rc4 {[%emt 0:00:01]} Nd7 {[%emt 0:00:23]} 35. Bg2 {[%emt 0:00:33]} Rd6 {[%emt 0:00:01]} 36. Rc8+ {[%emt 0:00:07]} Kh7 {[%emt 0:00:03]} 37. Rc4 {[%emt 0:00:54]} Ne5 {[%emt 0:00:20]} 38. Ra4 {[%emt 0:00:06]} g6 {[%emt 0:00:05]} 39. Bf1 {[%emt 0:00:06]} Kg7 {[%emt 0:00:06]} 40. Ra5 {[%emt 0:00:16]} Nd7 {[%emt 0:00:40]} 41. Kg2 {[%emt 0:00:20]} Nf6 {[%emt 0:00:59]} 42. Be2 {[%emt 0:00:05]} Nd5 {[%emt 0:00:21]} 43. Bf3 {[%emt 0:00:11]} Nc7 {[%emt 0:00:23]} 44. Rc5 {[%emt 0:00:10]} Nb5 {[%emt 0:00:18]} 45. a4 {[%emt 0:00:02]} Nc3 46. a5 {[%emt 0:00:02]} Na4 {[%emt 0:00:21]} 47. Rc6 {[%emt 0:00:36]} Rxc6 {[%emt 0:00:29]} 48. Bxc6 {[%emt 0:00:01]} Nc5 {[%emt 0:00:04]} 49. Kf3 {[%emt 0:00:06]} f5 {[%emt 0:00:03]} 50. Ke2 {[%emt 0:00:03]} Kf6 {[%emt 0:00:01]} 51. f4 {[%emt 0:00:15]} Ke6 {[%emt 0:00:44]} 52. Be8 {[%emt 0:00:17]} Kf6 {[%emt 0:00:07]} 53. Bc6 {[%emt 0:00:16]} Ke6 {[%emt 0:00:02]} 54. Be8 {[%emt 0:00:10]} Kf6 {[%emt 0:00:01]} 55. Bc6 {[%emt 0:00:02]} 1-0